[Event "POL Youth-ch U20 Girls 2020"]
[Site "Pokrzywna"]
[Date "2020.12.02"]
[Round "5.8"]
[White "Karykowska, Anna"]
[Black "Sowa, Wiktoria"]
[Result "1-0"]
[ECO "B33"]
[WhiteElo "1979"]
[BlackElo "2093"]
[Annotator "NA"]
[PlyCount "153"]
[EventDate "2020.11.29"]
[EventType "swiss"]
[EventCountry "POL"]
[SourceTitle "playchess.com"]
[Source "ChessBase"]
[SourceQuality "1"]
[TimeControl "40/5400+30:1800+30"]

1. e4 {[%emt 0:00:00]} c5 {[%emt 0:00:00]} 2. Nf3 {[%emt 0:00:00]} Nc6 {[%emt 0:00:00]} 3. d4 {[%emt 0:00:00]} cxd4 {[%emt 0:00:00]} 4. Nxd4 {[%emt 0:00:00]} Nf6 {[%emt 0:00:00]} 5. Nc3 {[%emt 0:00:02]} e5 {[%emt 0:00:00]} 6. Ndb5 {[%emt 0:00:14]} d6 {[%emt 0:00:04]} 7. Bg5 {[%emt 0:00:10]} a6 {[%emt 0:00:11]} 8. Na3 {[%emt 0:00:06]} b5 {[%emt 0:00:03]} 9. Bxf6 {[%emt 0:00:14]} gxf6 {[%emt 0:00:04]} 10. Nd5 {[%emt 0:00:09]} f5 {[%emt 0:00:51]} 11. g3 {[%emt 0:00:50]} Bg7 {[%emt 0:01:59]} 12. exf5 {[%emt 0:01:07]} Bxf5 {[%emt 0:01:23]} 13. Bg2 {[%emt 0:00:26]} O-O {[%emt 0:01:44]} 14. c3 {[%emt 0:03:38]} Rc8 {[%emt 0:02:19]} 15. O-O {[%emt 0:02:15]} Be6 {[%emt 0:03:23]} 16. Nc2 {[%emt 0:01:10]} f5 {[%emt 0:01:16]} 17. a4 {[%emt 0:08:02]} bxa4 {[%emt 0:03:13]} 18. Rxa4 {[%emt 0:02:00]} a5 {[%emt 0:01:58]} 19. b4 {[%emt 0:05:07]} axb4 {[%emt 0:01:39]} 20. cxb4 {[%emt 0:04:36]} e4 {[%emt 0:01:49]} 21. Nce3 {[%emt 0:05:06]} Nd4 {[%emt 0:04:44]} 22. Ra7 $11 {[%emt 0:02:40]} Rf7 {[%emt 0:04:11]} 23. Rxf7 {[%emt 0:11:49]} Bxf7 {[%emt 0:00:20]} 24. Nf4 {[%emt 0:02:14]} Qb6 {[%emt 0:04:48]} 25. Qa4 {[%emt 0:03:38]} Be5 {[%emt 0:09:37]} 26. Nfd5 {[%emt 0:02:47]} Qb7 {[%emt 0:01:50]} 27. Qa2 {[%emt 0:11:14]} Kh8 {[%emt 0:13:48]} 28. Rd1 {[%emt 0:04:06]} Rc3 {[%emt 0:18:45]} 29. Qa5 {[%emt 0:04:42]} Rc8 {[%emt 0:01:54]} 30. Qa2 {[%emt 0:01:45]} Be6 {[%emt 0:02:03]} 31. Kh1 {[%emt 0:03:51]} Nc6 {[%emt 0:04:11]} 32. Qd2 {[%emt 0:03:05]} Nd4 {[%emt 0:00:58]} 33. Qa2 {[%emt 0:03:01]} Rc6 {[%emt 0:05:51]} 34. Qa5 {[%emt 0:02:14]} Rc8 {[%emt 0:02:07]} 35. Qa2 {[%emt 0:01:38]} Kg7 {[%emt 0:04:56]} 36. Qa5 {[%emt 0:06:13]} Kh6 {[%emt 0:01:41]} 37. Qa2 {[%emt 0:01:10]} Kg7 {[%emt 0:01:37]} 38. Qa5 {[%emt 0:00:39]} Kf7 {[%emt 0:00:33]} 39. Qa2 {[%emt 0:01:33]} Ra8 {[%emt 0:01:43]} 40. Qc4 {[%emt 0:00:00]} Rc8 {[%emt 0:00:00]} 41. Qa2 {[%emt 0:01:20]} Kf8 {[%emt 0:05:26]} 42. Kg1 {[%emt 0:05:55]} Qc6 {[%emt 0:02:34]} 43. Bf1 {[%emt 0:16:36]} Nf3+ {[%emt 0:05:09]} 44. Kh1 {[%emt 0:00:49]} Bd4 {[%emt 0:01:16]} 45. b5 {[%emt 0:07:17]} Qb7 {[%emt 0:01:42]} 46. Qa6 {[%emt 0:00:37]} Qb8 {[%emt 0:02:13]} 47. Rxd4 {[%emt 0:05:44]} Nxd4 {[%emt 0:01:04]} 48. Qa1 {[%emt 0:00:16]} Nf3 {[%emt 0:03:19]} 49. Qf6+ {[%emt 0:01:34]} Bf7 {[%emt 0:00:17]} 50. Qh8+ {[%emt 0:00:08]} Bg8 {[%emt 0:00:06]} 51. Qf6+ {[%emt 0:01:04]} Bf7 {[%emt 0:00:04]} 52. Qe7+ {[%emt 0:00:35]} Kg8 {[%emt 0:00:47]} 53. Nf6+ {[%emt 0:00:32]} Kg7 {[%emt 0:00:33]} 54. Nxf5+ {[%emt 0:00:27]} Kg6 {[%emt 0:00:24]} 55. Nxd6 {[%emt 0:00:25]} Rc7 {[%emt 0:00:55]} 56. Qxe4+ {[%emt 0:00:19]} Kxf6 {[%emt 0:00:10]} 57. Qxf3+ {[%emt 0:00:48]} Kg7 {[%emt 0:00:41]} 58. Nf5+ {[%emt 0:00:31]} Kf8 {[%emt 0:00:53]} 59. Qa3+ {[%emt 0:00:27]} Kg8 {[%emt 0:01:12]} 60. Qb2 {[%emt 0:00:33]} Bd5+ {[%emt 0:00:51]} 61. Kg1 {[%emt 0:00:04]} Qf8 {[%emt 0:04:17]} 62. Qe5 {[%emt 0:00:36]} Rd7 {[%emt 0:01:01]} 63. Qf4 {[%emt 0:00:50]} Kh8 {[%emt 0:01:10]} 64. Qd4+ {[%emt 0:00:24]} Kg8 {[%emt 0:00:07]} 65. Qg4+ {[%emt 0:00:29]} Kh8 {[%emt 0:00:05]} 66. Ne3 {[%emt 0:00:34]} Rg7 {[%emt 0:00:49]} 67. Qd4 {[%emt 0:00:26]} Bb7 {[%emt 0:00:26]} 68. Qe5 {[%emt 0:00:27]} Bc8 {[%emt 0:01:28]} 69. b6 {[%emt 0:00:20]} Qe7 {[%emt 0:02:30]} 70. Qc3 {[%emt 0:00:41]} Be6 {[%emt 0:00:26]} 71. Bg2 {[%emt 0:00:27]} Kg8 {[%emt 0:00:39]} 72. b7 {[%emt 0:00:15]} Qd8 {[%emt 0:00:16]} 73. Qe5 {[%emt 0:00:30]} Rc7 {[%emt 0:00:55]} 74. Qxe6+ {[%emt 0:00:40]} Kf8 {[%emt 0:00:01]} 75. Qb3 {[%emt 0:00:41]} Rc1+ {[%emt 0:00:06]} 76. Nf1 {[%emt 0:00:17]} Qb8 {[%emt 0:00:00]} 77. Qa3+ {[%emt 0:00:12]} 1-0

[Event "POL Youth-ch U20 Girls 2020"]
[Site "Pokrzywna"]
[Date "2020.12.02"]
[Round "5.9"]
[White "Smietanska, Wiktoria"]
[Black "Furtak, Joanna"]
[Result "1/2-1/2"]
[ECO "A16"]
[WhiteElo "2013"]
[BlackElo "1837"]
[Annotator "NA"]
[PlyCount "110"]
[EventDate "2020.11.29"]
[EventType "swiss"]
[EventCountry "POL"]
[SourceTitle "playchess.com"]
[Source "ChessBase"]
[SourceQuality "1"]
[TimeControl "40/5400+30:1800+30"]

1. c4 {[%emt 0:00:00]} Nf6 {[%emt 0:00:00]} 2. Nc3 {[%emt 0:00:00]} g6 {[%emt 0:00:00]} 3. g3 {[%emt 0:00:00]} Bg7 {[%emt 0:00:00]} 4. Bg2 {[%emt 0:00:00]} O-O {[%emt 0:00:00]} 5. e4 {[%emt 0:00:00]} d6 {[%emt 0:00:00]} 6. Nge2 {[%emt 0:00:22]} c5 {[%emt 0:00:10]} 7. d3 {[%emt 0:00:09]} Nc6 {[%emt 0:00:33]} 8. O-O {[%emt 0:00:07]} Bd7 {[%emt 0:00:27]} 9. h3 {[%emt 0:00:29]} Ne8 {[%emt 0:02:14]} 10. Be3 {[%emt 0:00:11]} Nc7 {[%emt 0:00:54]} 11. d4 {[%emt 0:03:21]} cxd4 {[%emt 0:01:14]} 12. Nxd4 {[%emt 0:00:12]} Ne6 {[%emt 0:01:23]} 13. Nde2 {[%emt 0:07:02]} Nc5 {[%emt 0:05:12]} 14. b3 {[%emt 0:01:53]} Qc8 {[%emt 0:17:45]} 15. Kh2 {[%emt 0:00:40]} Kh8 {[%emt 0:00:47]} 16. Qd2 {[%emt 0:05:58]} f5 {[%emt 0:04:07]} 17. exf5 {[%emt 0:02:31]} Bxf5 {[%emt 0:03:57]} 18. Bh6 {[%emt 0:02:40]} Bxh6 {[%emt 0:11:07]} 19. Qxh6 {[%emt 0:00:08]} Bd3 {[%emt 0:00:09]} 20. Qe3 {[%emt 0:11:28]} Qe6 {[%emt 0:04:12]} 21. Qxe6 {[%emt 0:02:15]} Nxe6 {[%emt 0:00:05]} 22. Be4 {[%emt 0:09:08]} Bxe4 {[%emt 0:00:52]} 23. Nxe4 {[%emt 0:00:06]} Ned4 {[%emt 0:02:40]} 24. Nxd4 {[%emt 0:02:08]} Nxd4 {[%emt 0:00:05]} 25. f4 {[%emt 0:01:25]} Rac8 {[%emt 0:16:10]} 26. Rad1 {[%emt 0:00:38]} Nc6 {[%emt 0:02:44]} 27. Rfe1 {[%emt 0:04:07]} h6 {[%emt 0:02:29]} 28. Nc3 $11 {[%emt 0:04:47]} Kg7 {[%emt 0:01:56]} 29. Re6 {[%emt 0:01:59]} Rf6 {[%emt 0:01:18]} 30. Re3 {[%emt 0:01:09]} g5 {[%emt 0:05:36]} 31. Nd5 {[%emt 0:02:02]} gxf4 {[%emt 0:02:18]} 32. Nxf4 {[%emt 0:00:33]} Rf5 {[%emt 0:00:37]} 33. Re6 {[%emt 0:01:42]} Re5 {[%emt 0:01:06]} 34. Re1 {[%emt 0:03:19]} Rxe1 {[%emt 0:01:10]} 35. Rxe1 {[%emt 0:00:15]} e5 {[%emt 0:02:03]} 36. Nd5 {[%emt 0:02:49]} Nd4 {[%emt 0:00:36]} 37. Kg2 {[%emt 0:01:38]} b5 {[%emt 0:01:13]} 38. Ne3 {[%emt 0:03:20]} bxc4 {[%emt 0:01:47]} 39. Nxc4 {[%emt 0:00:51]} Rc6 {[%emt 0:01:15]} 40. Rf1 {[%emt 0:00:00]} Ra6 {[%emt 0:00:00]} 41. Rf2 {[%emt 0:09:39]} Kg6 {[%emt 0:11:32]} 42. g4 {[%emt 0:05:10]} Rc6 {[%emt 0:03:06]} 43. Kg3 {[%emt 0:01:45]} h5 {[%emt 0:04:00]} 44. gxh5+ {[%emt 0:01:40]} Kxh5 {[%emt 0:00:11]} 45. Rf6 {[%emt 0:01:21]} Kg5 {[%emt 0:02:39]} 46. Rf2 {[%emt 0:03:26]} e4 {[%emt 0:08:49]} 47. h4+ {[%emt 0:03:22]} Kh5 {[%emt 0:00:05]} 48. Kf4 {[%emt 0:01:29]} d5 {[%emt 0:01:15]} 49. Ke5 {[%emt 0:01:12]} dxc4 {[%emt 0:05:04]} 50. Kxd4 {[%emt 0:00:10]} e3 {[%emt 0:02:51]} 51. Kxe3 {[%emt 0:00:35]} cxb3 {[%emt 0:00:04]} 52. axb3 {[%emt 0:00:10]} Rc3+ {[%emt 0:00:05]} 53. Kd4 {[%emt 0:00:14]} Rxb3 {[%emt 0:00:04]} 54. Ra2 {[%emt 0:00:08]} Kxh4 {[%emt 0:00:08]} 55. Rxa7 {[%emt 0:00:06]} Rb8 {[%emt 0:00:04]} 1/2-1/2

[Event "POL Youth-ch U20 Girls 2020"]
[Site "Pokrzywna"]
[Date "2020.12.02"]
[Round "5.10"]
[White "Zabrzanska, Weronika"]
[Black "Cieslak, Wiktoria"]
[Result "1/2-1/2"]
[ECO "B47"]
[WhiteElo "1849"]
[BlackElo "2008"]
[Annotator "ChessBase"]
[PlyCount "69"]
[EventDate "2020.11.29"]
[EventType "swiss"]
[EventCountry "POL"]
[SourceTitle "playchess.com"]
[Source "ChessBase"]
[SourceQuality "1"]
[TimeControl "40/5400+30:1800+30"]

1. e4 {[%emt 0:00:00]} c5 {[%emt 0:00:00]} 2. Nc3 {[%emt 0:00:00]} e6 {[%emt 0:00:00]} 3. Nf3 {[%emt 0:00:00]} Nc6 {[%emt 0:00:06]} 4. d4 {[%emt 0:00:38]} cxd4 {[%emt 0:00:09]} 5. Nxd4 {[%emt 0:00:05]} Qc7 {[%emt 0:00:41]} 6. g3 {[%emt 0:03:26]} a6 {[%emt 0:00:17]} 7. Bg2 {[%emt 0:00:12]} Nf6 {[%emt 0:00:28]} 8. O-O {[%emt 0:00:43]} Bb4 {[%emt 0:00:24]} 9. Nde2 {[%emt 0:01:32]} O-O {[%emt 0:00:35]} 10. Bf4 {[%emt 0:03:50]} Ne5 {[%emt 0:08:24]} 11. Qd4 {[%emt 0:12:15]} Bd6 {[%emt 0:00:36]} 12. Rfd1 {[%emt 0:07:14]} Ne8 {[%emt 0:00:52]} 13. Nc1 {[%emt 0:06:00]} f6 {[%emt 0:01:40]} 14. Nd3 {[%emt 0:03:17]} Nxd3 {[%emt 0:01:35]} 15. Bxd6 {[%emt 0:00:20]} Nxd6 {[%emt 0:00:07]} 16. cxd3 {[%emt 0:03:51]} Nf7 {[%emt 0:01:18]} 17. Rac1 {[%emt 0:05:45]} Qd8 {[%emt 0:00:31]} 18. f4 {[%emt 0:06:42]} d6 {[%emt 0:02:27]} 19. b4 {[%emt 0:02:35]} Bd7 {[%emt 0:04:50]} 20. a4 {[%emt 0:07:34]} b5 {[%emt 0:01:57]} 21. a5 {[%emt 0:01:18]} Rc8 {[%emt 0:04:10]} 22. Rc2 {[%emt 0:02:48]} Bc6 {[%emt 0:02:01]} 23. Rdc1 {[%emt 0:00:22]} Qd7 {[%emt 0:01:03]} 24. Qb6 {[%emt 0:01:04]} Bb7 {[%emt 0:00:30]} 25. Nd5 {[%emt 0:09:38]} exd5 {[%emt 0:07:31]} 26. Rc7 {[%emt 0:00:30]} Rxc7 {[%emt 0:00:24]} 27. Rxc7 {[%emt 0:00:08]} Qg4 {[%emt 0:00:06]} 28. Rxb7 {[%emt 0:00:39]} Qd1+ {[%emt 0:00:23]} 29. Bf1 {[%emt 0:00:21]} dxe4 {[%emt 0:00:31]} 30. dxe4 {[%emt 0:00:20]} Qe1 {[%emt 0:00:18]} 31. Rb8 {[%emt 0:05:49]} Qxb4 {[%emt 0:05:23]} 32. Rxf8+ {[%emt 0:00:45]} Kxf8 {[%emt 0:00:05]} 33. Qb8+ {[%emt 0:01:32]} Ke7 {[%emt 0:00:04]} 34. Qc7+ {[%emt 0:00:17]} Ke8 {[%emt 0:00:22]} 35. Qc6+ {[%emt 0:00:53]} 1/2-1/2

[Event "POL Youth-ch U20 Girls 2020"]
[Site "Pokrzywna"]
[Date "2020.12.02"]
[Round "5.11"]
[White "Starosta, Martyna"]
[Black "Siekanska, Maria"]
[Result "1-0"]
[ECO "E15"]
[WhiteElo "2094"]
[BlackElo "1919"]
[Annotator "NA"]
[PlyCount "87"]
[EventDate "2020.11.29"]
[EventType "swiss"]
[EventCountry "POL"]
[SourceTitle "playchess.com"]
[Source "ChessBase"]
[SourceQuality "1"]
[TimeControl "40/5400+30:1800+30"]

1. d4 {[%emt 0:00:00]} Nf6 {[%emt 0:00:00]} 2. Nf3 {[%emt 0:00:00]} e6 {[%emt 0:00:00]} 3. c4 {[%emt 0:01:47]} b6 {[%emt 0:00:16]} 4. g3 {[%emt 0:02:20]} Ba6 {[%emt 0:01:42]} 5. Qa4 {[%emt 0:03:08]} Bb7 {[%emt 0:02:19]} 6. Bg2 {[%emt 0:02:15]} Be7 {[%emt 0:01:59]} 7. O-O {[%emt 0:02:13]} O-O {[%emt 0:00:40]} 8. Nc3 {[%emt 0:00:55]} c5 {[%emt 0:05:12]} 9. dxc5 {[%emt 0:06:32]} Bxc5 {[%emt 0:04:18]} 10. b4 {[%emt 0:03:55]} Be7 $1 {[%emt 0:01:39]} 11. Bb2 {[%emt 0:02:03]} Nc6 {[%emt 0:05:39]} 12. a3 {[%emt 0:01:53]} Rc8 {[%emt 0:07:16]} 13. Rfd1 {[%emt 0:02:49]} Qc7 {[%emt 0:02:48]} (13... a5 $11) 14. Rac1 {[%emt 0:03:10]} Qb8 {[%emt 0:00:47]} 15. Nb5 {[%emt 0:13:22]} a6 {[%emt 0:02:08]} 16. Nbd4 $11 {[%emt 0:05:22]} Rfd8 {[%emt 0:02:07]} 17. Nxc6 {[%emt 0:06:26]} Bxc6 {[%emt 0:03:46]} 18. Qxa6 {[%emt 0:15:18]} d5 {[%emt 0:20:08]} 19. Ne5 {[%emt 0:07:53]} Ba8 {[%emt 0:11:27]} 20. Bd4 {[%emt 0:03:22]} Bd6 {[%emt 0:02:12]} 21. f4 {[%emt 0:05:24]} Bc7 {[%emt 0:01:29]} 22. c5 {[%emt 0:01:40]} bxc5 {[%emt 0:03:21]} 23. Rxc5 {[%emt 0:05:44]} Bb6 {[%emt 0:02:06]} 24. Qxb6 {[%emt 0:01:11]} Qxb6 {[%emt 0:00:30]} 25. Rxc8 Qxd4+ {[%emt 0:01:28]} 26. Rxd4 {[%emt 0:00:07]} Rxc8 {[%emt 0:00:10]} 27. b5 {[%emt 0:01:35]} Ne8 {[%emt 0:01:49]} 28. Ra4 {[%emt 0:01:30]} f6 {[%emt 0:03:08]} 29. Nd7 {[%emt 0:01:09]} Bb7 {[%emt 0:01:38]} 30. Ra7 {[%emt 0:00:45]} Rc7 {[%emt 0:00:37]} 31. Nb6 {[%emt 0:00:18]} Nd6 {[%emt 0:00:24]} 32. Ra5 {[%emt 0:01:12]} Rc2 {[%emt 0:02:44]} 33. Kf2 {[%emt 0:00:31]} d4 {[%emt 0:01:15]} 34. Bxb7 {[%emt 0:00:25]} d3 {[%emt 0:04:56]} 35. Ke1 {[%emt 0:00:37]} Rc1+ {[%emt 0:01:15]} 36. Kd2 {[%emt 0:00:23]} dxe2 {[%emt 0:00:09]} 37. Kxe2 {[%emt 0:00:17]} Nxb7 {[%emt 0:00:35]} 38. Ra8+ {[%emt 0:00:02]} Kf7 {[%emt 0:00:10]} 39. Ra7 {[%emt 0:00:01]} Rc2+ {[%emt 0:00:11]} 40. Kf3 {[%emt 0:00:00]} Rc3+ {[%emt 0:00:00]} 41. Kg4 {[%emt 0:01:42]} Rc7 {[%emt 0:02:03]} 42. Nc8 {[%emt 0:07:28]} h5+ {[%emt 0:03:56]} 43. Kxh5 {[%emt 0:05:47]} Kg8 {[%emt 0:00:39]} 44. Kg6 {[%emt 0:00:38]} 1-0

[Event "POL Youth-ch U20 Girls 2020"]
[Site "Pokrzywna"]
[Date "2020.12.02"]
[Round "5.12"]
[White "Barwinska, Ewa"]
[Black "Marcinczyk, Monika"]
[Result "0-1"]
[ECO "B37"]
[WhiteElo "1731"]
[BlackElo "2030"]
[Annotator "NA"]
[PlyCount "102"]
[EventDate "2020.11.29"]
[EventType "swiss"]
[EventCountry "POL"]
[SourceTitle "playchess.com"]
[Source "ChessBase"]
[SourceQuality "1"]
[TimeControl "40/5400+30:1800+30"]

1. e4 {[%emt 0:00:00]} c5 {[%emt 0:00:00]} 2. Ne2 {[%emt 0:00:00]} Nc6 {[%emt 0:00:00]} 3. c4 {[%emt 0:00:00]} g6 {[%emt 0:00:02]} 4. d4 {[%emt 0:00:04]} cxd4 {[%emt 0:00:05]} 5. Nxd4 {[%emt 0:00:13]} Bg7 {[%emt 0:00:08]} 6. Nc2 {[%emt 0:00:13]} Nf6 {[%emt 0:00:14]} 7. Nc3 {[%emt 0:00:14]} d6 {[%emt 0:00:17]} 8. Be2 {[%emt 0:00:41]} O-O {[%emt 0:00:43]} 9. Be3 {[%emt 0:00:26]} Be6 {[%emt 0:01:49]} 10. f3 {[%emt 0:01:16]} Nd7 {[%emt 0:04:35]} 11. Qd2 {[%emt 0:01:44]} Nde5 {[%emt 0:12:58]} (11... Qa5 $11) 12. b3 {[%emt 0:02:10]} Qa5 {[%emt 0:06:17]} 13. Nd4 {[%emt 0:04:55]} Nxd4 {[%emt 0:07:00]} 14. Bxd4 {[%emt 0:00:18]} Rfc8 {[%emt 0:04:51]} 15. Rc1 {[%emt 0:06:43]} a6 {[%emt 0:05:49]} 16. O-O {[%emt 0:07:32]} b5 {[%emt 0:07:55]} 17. cxb5 {[%emt 0:03:22]} axb5 {[%emt 0:01:15]} 18. Bxb5 {[%emt 0:09:46]} Rxc3 {[%emt 0:07:12]} 19. Rxc3 {[%emt 0:02:39]} Qxb5 {[%emt 0:00:13]} 20. Rfc1 {[%emt 0:05:57]} Qa6 {[%emt 0:02:18]} 21. R1c2 {[%emt 0:06:32]} f5 {[%emt 0:08:23]} 22. Rc7 $17 {[%emt 0:11:04]} Nd7 {[%emt 0:06:44]} 23. Bxg7 {[%emt 0:00:56]} Kxg7 {[%emt 0:00:15]} 24. Qd4+ {[%emt 0:03:13]} Kf7 {[%emt 0:00:42]} 25. R7c3 {[%emt 0:08:28]} Qa7 {[%emt 0:02:23]} 26. Qxa7 {[%emt 0:00:27]} Rxa7 {[%emt 0:00:01]} 27. exf5 {[%emt 0:02:21]} Bxf5 {[%emt 0:01:15]} 28. Rc7 {[%emt 0:02:49]} Ra6 {[%emt 0:02:42]} 29. Re2 {[%emt 0:01:16]} d5 {[%emt 0:00:40]} 30. g4 {[%emt 0:01:11]} Be6 {[%emt 0:00:07]} 31. b4 {[%emt 0:04:51]} d4 {[%emt 0:02:24]} 32. b5 {[%emt 0:02:22]} Rd6 {[%emt 0:00:47]} 33. Kf2 {[%emt 0:06:17]} d3 {[%emt 0:00:57]} 34. Rd2 {[%emt 0:00:06]} Nb6 {[%emt 0:05:19]} 35. Rc6 {[%emt 0:01:36]} Bc4 {[%emt 0:00:45]} 36. Rxd6 {[%emt 0:00:37]} exd6 {[%emt 0:00:01]} 37. Ke3 {[%emt 0:01:55]} Bxb5 {[%emt 0:01:06]} 38. Kd4 {[%emt 0:01:35]} Ba6 {[%emt 0:02:03]} 39. f4 {[%emt 0:01:03]} Ke6 {[%emt 0:01:28]} 40. h4 {[%emt 0:00:00]} h5 {[%emt 0:00:00]} 41. f5+ {[%emt 0:09:54]} gxf5 {[%emt 0:05:01]} 42. gxh5 {[%emt 0:00:07]} Nd7 {[%emt 0:09:00]} 43. h6 {[%emt 0:03:33]} Nf6 {[%emt 0:01:12]} 44. Rg2 {[%emt 0:01:21]} f4 {[%emt 0:08:25]} 45. a3 {[%emt 0:01:14]} Kf7 {[%emt 0:06:12]} 46. Rg7+ {[%emt 0:01:06]} Kf8 {[%emt 0:00:32]} 47. Rg2 {[%emt 0:00:22]} f3 {[%emt 0:03:20]} 48. Rf2 {[%emt 0:02:38]} Bb7 {[%emt 0:00:52]} 49. Kxd3 {[%emt 0:01:23]} Ng4 {[%emt 0:00:18]} 50. Rb2 {[%emt 0:03:50]} f2 {[%emt 0:00:16]} 51. Rxf2+ {[%emt 0:01:21]} Nxf2+ {[%emt 0:00:00]} 0-1

[Event "POL Youth-ch U20 Girls 2020"]
[Site "Pokrzywna"]
[Date "2020.12.02"]
[Round "5.15"]
[White "Mirowska, Oliwia"]
[Black "Hertlein, Irena"]
[Result "1-0"]
[ECO "B33"]
[WhiteElo "1820"]
[BlackElo "1893"]
[Annotator "NA"]
[PlyCount "65"]
[EventDate "2020.11.29"]
[EventType "swiss"]
[EventCountry "POL"]
[SourceTitle "playchess.com"]
[Source "ChessBase"]
[SourceQuality "1"]
[TimeControl "40/5400+30:1800+30"]

1. e4 c5 2. Nf3 Nc6 3. d4 cxd4 4. Nxd4 Nf6 5. Nc3 g6 6. Be2 Bg7 7. Nb3 O-O 8. Be3 a5 9. a4 d6 10. g4 d5 11. exd5 Nb4 12. Bf3 Bxg4 13. Bxg4 Nxg4 14. Qxg4 Nxc2+ 15. Ke2 Nxa1 16. Rxa1 Bxc3 17. bxc3 Qxd5 18. Nd4 Qc4+ 19. Kf3 f5 20. Qh3 e5 21. Rg1 exd4 22. Bxd4 Qd5+ 23. Kf4 Qe4+ 24. Kg5 f4 25. Qh6 Rf7 26. Kh4 f3+ 27. Rg4 Qe7+ 28. Kh3 Qe6 29. Kg3 Rd8 30. h4 Qd6+ 31. Kh3 Qf8 32. Rxg6+ hxg6 33. Qh8# 1-0

[Event "POL Youth-ch U20 Girls 2020"]
[Site "Pokrzywna"]
[Date "2020.12.03"]
[Round "6.1"]
[White "Malicka, Maria"]
[Black "Rudzinska, Michalina"]
[Result "0-1"]
[ECO "B85"]
[WhiteElo "2291"]
[BlackElo "2189"]
[Annotator "RC"]
[PlyCount "68"]
[EventDate "2020.11.29"]
[EventType "swiss"]
[EventCountry "POL"]
[SourceTitle "playchess.com"]
[Source "ChessBase"]
[SourceQuality "1"]
[TimeControl "40/5400+30:1800+30"]

1. e4 {[%emt 0:00:00]} c5 {[%emt 0:00:00]} 2. Nf3 {[%emt 0:00:00]} e6 {[%emt 0:00:00]} 3. d4 {[%emt 0:00:00]} cxd4 {[%emt 0:00:00]} 4. Nxd4 {[%emt 0:00:00]} Nc6 {[%emt 0:00:00]} 5. Nc3 {[%emt 0:00:00]} Qc7 {[%emt 0:00:01]} 6. Be2 {[%emt 0:00:32]} a6 {[%emt 0:00:08]} 7. O-O {[%emt 0:00:24]} Nf6 {[%emt 0:00:06]} 8. Be3 {[%emt 0:00:22]} Be7 {[%emt 0:00:09]} 9. f4 {[%emt 0:01:29]} d6 {[%emt 0:00:08]} 10. Qe1 {[%emt 0:01:02]} O-O {[%emt 0:00:20]} 11. Kh1 {[%emt 0:01:23]} Na5 {[%emt 0:00:36]} 12. Qg3 {[%emt 0:10:58]} Nc4 {[%emt 0:00:34]} 13. Bxc4 {[%emt 0:11:13]} Qxc4 {[%emt 0:00:06]} 14. e5 {[%emt 0:02:32]} Nh5 {[%emt 0:06:00]} 15. Qf3 {[%emt 0:07:11]} g6 {[%emt 0:00:10]} 16. Ne4 {[%emt 0:03:32]} d5 {[%emt 0:09:58]} 17. Nf2 {[%emt 0:05:27]} f6 {[%emt 0:04:50]} 18. Ng4 {[%emt 0:03:30]} fxe5 {[%emt 0:06:36]} 19. Nxe5 {[%emt 0:00:14]} Qc7 {[%emt 0:00:16]} 20. Qe2 {[%emt 0:10:45]} Bd6 {[%emt 0:05:55]} 21. Bd2 {[%emt 0:02:25]} Nf6 {[%emt 0:04:03]} 22. c4 {[%emt 0:04:09]} Ne4 {[%emt 0:02:56]} 23. Rac1 {[%emt 0:02:04]} Qg7 {[%emt 0:09:54]} 24. Ndf3 {[%emt 0:02:35]} Qh6 {[%emt 0:03:00]} 25. Qe1 {[%emt 0:06:56]} Nxd2 {[%emt 0:03:42]} 26. Qxd2 {[%emt 0:02:16]} Qxf4 {[%emt 0:03:15]} 27. Qxf4 {[%emt 0:02:57]} Rxf4 {[%emt 0:00:07]} 28. c5 {[%emt 0:00:08]} Bc7 {[%emt 0:01:56]} 29. Nd3 {[%emt 0:01:58]} Re4 {[%emt 0:03:31]} 30. Ng5 {[%emt 0:04:59]} Rd4 {[%emt 0:05:05]} 31. c6 {[%emt 0:03:52]} bxc6 {[%emt 0:05:40]} 32. Nc5 {[%emt 0:04:02]} Rh4 {[%emt 0:07:22]} 33. h3 {[%emt 0:02:56]} Bf4 {[%emt 0:01:40]} 34. g3 {[%emt 0:00:13]} Bxg5 {[%emt 0:05:01]} 0-1

[Event "POL Youth-ch U20 Girls 2020"]
[Site "Pokrzywna"]
[Date "2020.12.03"]
[Round "6.4"]
[White "Kroliczek, Gabriela"]
[Black "Parol, Pola"]
[Result "0-1"]
[ECO "B24"]
[WhiteElo "1911"]
[BlackElo "2069"]
[Annotator "RC"]
[PlyCount "72"]
[EventDate "2020.11.29"]
[EventType "swiss"]
[EventCountry "POL"]
[SourceTitle "playchess.com"]
[Source "ChessBase"]
[SourceQuality "1"]
[TimeControl "40/5400+30:1800+30"]

1. e4 {[%emt 0:00:00]} c5 {[%emt 0:00:00]} 2. Nc3 {[%emt 0:00:00]} Nc6 {[%emt 0:00:00]} 3. Bb5 {[%emt 0:00:00]} Nd4 {[%emt 0:00:15]} 4. Nf3 {[%emt 0:00:00]} a6 {[%emt 0:00:44]} 5. Bd3 {[%emt 0:00:00]} g6 {[%emt 0:01:05]} 6. O-O {[%emt 0:00:01]} Bg7 {[%emt 0:02:14]} 7. Nd5 {[%emt 0:07:18]} e6 {[%emt 0:12:40]} 8. Ne3 {[%emt 0:00:50]} d5 {[%emt 0:05:16]} 9. exd5 {[%emt 0:05:12]} exd5 {[%emt 0:00:48]} 10. Nxd4 {[%emt 0:05:52]} cxd4 {[%emt 0:14:05]} 11. Ng4 {[%emt 0:00:09]} Qg5 {[%emt 0:02:21]} 12. h3 {[%emt 0:10:16]} Qf4 {[%emt 0:05:30]} 13. Qe2+ {[%emt 0:05:00]} Be6 {[%emt 0:02:47]} 14. c4 {[%emt 0:07:43]} Ne7 {[%emt 0:02:29]} 15. cxd5 {[%emt 0:03:09]} Nxd5 {[%emt 0:00:52]} 16. Be4 {[%emt 0:00:19]} O-O {[%emt 0:04:08]} 17. d3 Qd6 18. f4 {[%emt 0:24:09]} f5 {[%emt 0:09:43]} 19. Bxd5 {[%emt 0:00:11]} Bxd5 {[%emt 0:00:21]} 20. Nh2 {[%emt 0:01:04]} Rfe8 {[%emt 0:01:15]} 21. Qf2 Qe6 {[%emt 0:05:29]} 22. Bd2 {[%emt 0:08:37]} Qe2 {[%emt 0:07:01]} 23. Qxe2 {[%emt 0:00:11]} Rxe2 {[%emt 0:00:06]} 24. Rf2 {[%emt 0:00:02]} Rae8 {[%emt 0:00:46]} 25. g3 {[%emt 0:06:50]} R2e6 {[%emt 0:02:09]} 26. a4 {[%emt 0:10:00]} Rc6 {[%emt 0:02:25]} 27. b4 {[%emt 0:00:07]} Rc2 {[%emt 0:00:50]} 28. Rb1 {[%emt 0:01:48]} Ra2 {[%emt 0:00:44]} 29. a5 {[%emt 0:00:05]} Ra3 {[%emt 0:00:54]} 30. b5 {[%emt 0:02:37]} Rxd3 {[%emt 0:00:36]} 31. Nf1 {[%emt 0:00:06]} Rb3 {[%emt 0:02:04]} 32. Rxb3 {[%emt 0:00:48]} Bxb3 {[%emt 0:00:04]} 33. bxa6 {[%emt 0:00:09]} bxa6 {[%emt 0:00:05]} 34. Rf3 {[%emt 0:00:59]} Bc4 {[%emt 0:01:00]} 35. g4 {[%emt 0:01:41]} Rb8 {[%emt 0:02:59]} 36. Kg2 {[%emt 0:01:34]} Bd5 {[%emt 0:00:11]} 0-1